fUSD/lending_fUSD_20240426
["ID","MTS","AMOUNT","RATE_DAILY","PERIOD"]
[323695276,1714165922414,-350.0,0.00019178,2]
[323695277,1714165922423,-500.0,0.00019178,2]
[323695278,1714165922431,-457.47624379,0.00019178,2]
[323695279,1714165922441,-500.0,0.00019178,2]
[323695280,1714165922450,-500.0,0.00019178,2]
[323695281,1714165922460,-500.0,0.00019178,2]
[323695282,1714165922471,-500.0,0.00019178,2]
[323695283,1714165922480,-500.0,0.00019178,2]
[323695284,1714165922489,-500.0,0.00019178,2]
[323695285,1714165922499,-500.0,0.00019178,2]
[323695286,1714165922508,-500.0,0.00019178,2]
[323695287,1714165922517,-500.0,0.00019178,2]
[323695288,1714165922526,-500.0,0.00019178,2]
[323695289,1714165922536,-500.0,0.00019178,2]
[323695290,1714165922545,-500.0,0.00019178,2]
[323695291,1714165922555,-500.0,0.00019178,2]
[323695292,1714165922566,-500.0,0.00019178,2]
[323695293,1714165922576,-500.0,0.00019178,2]
[323695294,1714165922586,-500.0,0.00019178,2]
[323695295,1714165922595,-500.0,0.00019178,2]
[323695296,1714165922605,-500.0,0.00019178,2]
[323695297,1714165922616,-500.0,0.00019178,2]
[323695298,1714165922626,-500.0,0.00019178,2]
[323695299,1714165922635,-500.0,0.00019178,2]
[323695300,1714165922646,-500.0,0.00019178,2]
[323695301,1714165922656,-500.0,0.00019178,2]
[323695302,1714165922666,-500.0,0.00019178,2]
[323695303,1714165922676,-500.0,0.00019178,2]
[323695304,1714165922686,-500.0,0.00019178,2]
[323695305,1714165922695,-500.0,0.00019178,2]
[323695306,1714165922705,-500.0,0.00019178,2]
[323695307,1714165922715,-500.0,0.00019178,2]
[323695308,1714165922786,-500.0,0.00019178,2]
[323695309,1714165922797,-500.0,0.00019178,2]
[323695310,1714165922807,-500.0,0.00019178,2]
[323695311,1714165922816,-500.0,0.00019178,2]
[323695312,1714165922825,-500.0,0.00019178,2]
[323695313,1714165922837,-500.0,0.00019178,2]
[323695314,1714165922846,-500.0,0.00019178,2]
[323695315,1714165922855,-500.0,0.00019178,2]
[323695316,1714165922865,-500.0,0.00019178,2]
[323695317,1714165922875,-500.0,0.00019178,2]
[323695318,1714165922884,-500.0,0.00019178,2]
[323695319,1714165922894,-500.0,0.00019178,2]
[323695320,1714165922903,-500.0,0.00019178,2]
[323695321,1714165922913,-559.82687042,0.00019178,2]
[323695322,1714165922922,-1698.96,0.00019178,2]
[323695323,1714165922931,-1698.96,0.00019178,2]
[323695324,1714165922940,-1698.96,0.00019178,2]
[323695325,1714165922949,-1698.96,0.00019178,2]
[323695326,1714165922958,-1698.96,0.00019178,2]
[323695327,1714165922968,-1698.96,0.00019178,2]
[323695328,1714165922977,-1698.96,0.00019178,2]
[323695329,1714165922986,-1698.96,0.00019178,2]
[323695330,1714165922995,-1698.96,0.00019178,2]
[323695331,1714165923005,-1698.96,0.00019178,2]
[323695332,1714165923014,-1698.96,0.00019178,2]
[323695333,1714165923023,-1698.96,0.00019178,2]
[323695334,1714165923032,-1698.96,0.00019178,2]
[323695335,1714165923041,-1698.96,0.00019178,2]
[323695336,1714165923051,-1698.96,0.00019178,2]
[323695337,1714165923060,-1698.96,0.00019178,2]
[323695338,1714165923069,-1698.96,0.00019178,2]
[323695339,1714165923078,-1698.96,0.00019178,2]
[323695340,1714165923090,-1698.96,0.00019178,2]
[323695341,1714165923100,-1698.96,0.00019178,2]
[323695342,1714165923109,-1698.96,0.00019178,2]
[323695343,1714165923118,-1698.96,0.00019178,2]
[323695344,1714165923127,-1698.96,0.00019178,2]
[323695345,1714165923136,-1699.14622216,0.00019178,2]
[323695346,1714165923145,-3124.08,0.00019178,2]
[323695347,1714165923154,-4000.0,0.00019178,2]
[323695348,1714165923163,-55000.0,0.00019178,2]
[323695349,1714165923172,-9774.75,0.00019178,2]
[323695350,1714165923181,-663.119467,0.00019178,2]
[323695351,1714165923190,-663.119467,0.00019178,2]
[323695352,1714165923199,-663.119467,0.00019178,2]
[323695353,1714165923207,-663.119467,0.00019178,2]
[323695354,1714165923216,-663.119467,0.00019178,2]
[323695355,1714165923225,-663.119467,0.00019178,2]
[323695356,1714165923234,-663.119467,0.00019178,2]
[323695357,1714165923243,-663.119467,0.00019178,2]
[323695358,1714165923252,-663.119467,0.00019178,2]
[323695359,1714165923262,-663.119467,0.00019178,2]
[323695360,1714165923271,-663.119467,0.00019178,2]
[323695361,1714165923280,-663.119467,0.00019178,2]
[323695362,1714165923290,-663.119467,0.00019178,2]
[323695363,1714165923300,-663.119467,0.00019178,2]
[323695364,1714165923311,-663.119467,0.00019178,2]
[323695365,1714165923321,-663.119467,0.00019178,2]
[323695366,1714165923330,-663.119467,0.00019178,2]
[323695367,1714165923343,-663.119467,0.00019178,2]
[323695368,1714165923353,-663.119467,0.00019178,2]
[323695369,1714165923364,-663.11946,0.00019178,2]
[323695370,1714165923375,-200.0,0.00019178,2]
[323695371,1714165923384,-1463.46823127,0.00019179,2]
[323695372,1714165923393,-4425.21,0.000192,2]
[323695373,1714165923402,-4102.33,0.000192,2]
[323695374,1714165923411,-4354.01,0.000192,2]
[323695375,1714165923420,-13379.91796638,0.000192,2]
[323695376,1714165923429,-400.0,0.000192,2]
[323695377,1714165923438,-181.18381325,0.00019201,2]
[323695378,1714165923447,-181.18381325,0.00019238,2]
[323695379,1714165923456,-390.89,0.00019241,2]
[323695380,1714165923466,-150.7423774,0.0001925,2]
[323695381,1714165923476,-154.31732651,0.00019274,2]
[323695382,1714165923485,-1463.46823127,0.00019283,2]
[323695383,1714165923494,-153.67518868,0.00019292,2]
[323695384,1714165923503,-152.50582994,0.00019328,2]
[323695385,1714165923513,-1407.43167261,0.00019342,2]
[323695386,1714165923522,-152.50582994,0.00019344,2]
[323695387,1714165923531,-152.83625942,0.00019349,2]
[323695388,1714165923541,-392.84,0.0001936,2]
[323695389,1714165923550,-500.0,0.00019363,2]
[323695390,1714165923559,-500.0,0.00019364,2]
[323695391,1714165923568,-267.32903863,0.00019373,2]
[323695392,1714165923578,-1463.46823127,0.00019376,2]
[323695393,1714165923589,-181.18381325,0.00019376,2]
[323695394,1714165923598,-152.47114042,0.00019379,2]
[323695395,1714165923608,-152.83625942,0.00019392,2]
[323695396,1714165923617,-158.37439134,0.00019404,2]
[323695397,1714165923627,-153.67518868,0.00019405,2]
[323695398,1714165923636,-151.74936673,0.00019414,2]
[323695399,1714165923646,-154.67449997,0.00019415,2]
[323695400,1714165923655,-557.71554175,0.00019421,2]
[323695401,1714165923664,-1407.43167261,0.00019436,2]
[323695402,1714165923674,-673.80146933,0.00019437,2]
[323695403,1714165923683,-157.042705,0.00019448,4]
[323695404,1714165923692,-152.83625942,0.00019478,2]
[323695405,1714165923704,-154.31732651,0.00019497,2]
[323695406,1714165923714,-1000.0,0.000195,2]
[323695407,1714165923723,-3028.18979858,0.000195,11]
[323695408,1714165923733,-1500.0,0.000195,2]
[323695409,1714165923744,-150.0,0.000195,2]
[323695410,1714165923754,-150.0,0.000195,2]
[323695411,1714165923763,-307.5,0.00019515,2]
[323695412,1714165923772,-323.60026895,0.00019537,2]
[323695413,1714165923782,-166.6666667,0.00019544,2]
[323695414,1714165923792,-181.18381325,0.00019562,2]
[323695415,1714165923801,-246.6,0.0001957,7]
[323695416,1714165923812,-270.0,0.0001957,15]
[323695417,1714165923822,-150.5,0.0001957,15]
[323695418,1714165923832,-150.5,0.0001957,15]
[323695419,1714165923842,-428.0,0.0001957,15]
[323695420,1714165923853,-428.0,0.0001957,15]
[323695421,1714165923862,-150.5,0.0001958,7]
[323695422,1714165923871,-270.0,0.0001958,15]
[323695423,1714165923881,-150.5,0.0001958,15]
[323695424,1714165923892,-150.5,0.0001958,15]
[323695425,1714165923902,-150.5,0.0001958,15]
[323695426,1714165923911,-428.0,0.0001958,15]
[323695427,1714165923922,-428.0,0.0001958,15]
[323695428,1714165923931,-428.0,0.0001958,15]
[323695429,1714165923940,-432.28,0.0001958,15]
[323695430,1714165923949,-150.5,0.0001959,7]
[323695431,1714165923958,-270.0,0.0001959,15]
[323695432,1714165923968,-152.64,0.0001959,15]
[323695433,1714165923977,-154.84,0.0001959,15]
[323695434,1714165923986,-150.5,0.0001959,15]
[323695435,1714165923996,-150.5,0.0001959,15]
[323695436,1714165924006,-150.5,0.0001959,15]
[323695437,1714165924015,-265.41,0.0001959,15]
[323695438,1714165924025,-428.0,0.0001959,15]
[323695439,1714165924033,-428.0,0.0001959,15]
[323695440,1714165924042,-428.0,0.0001959,15]
[323695441,1714165924051,-428.0,0.0001959,15]
[323695442,1714165924060,-1463.46823127,0.00019597,2]
[323695443,1714165924070,-154.31732651,0.00019606,2]
[323695444,1714165924079,-166.46797125,0.00019607,2]
[323695445,1714165924089,-1551.0,0.00019617,2]
[323695446,1714165924101,-152.47114042,0.00019618,2]
[323695447,1714165924112,-154.31732651,0.00019649,2]
[323695448,1714165924123,-1463.46823127,0.00019651,2]
[323695449,1714165924133,-267.32903863,0.00019668,2]
[323695450,1714165924143,-159.85662846,0.00019673,2]
[323695451,1714165924154,-150.7423774,0.00019689,2]
[323695452,1714165924163,-154.67449997,0.00019699,2]
[323695453,1714165924172,-150.7423774,0.00019747,2]
[323695454,1714165924182,-323.60026895,0.00019748,2]
[323695455,1714165924191,-152.83625942,0.00019758,2]
[323695456,1714165924200,-153.98573812,0.0001976,2]
[323695457,1714165924209,-270.0,0.0001977,15]
[323695458,1714165924219,-270.0,0.0001978,15]
[323695459,1714165924228,-270.0,0.0001978,15]
[323695460,1714165924237,-152.47114042,0.00019781,2]
[323695461,1714165924246,-270.0,0.0001979,15]
[323695462,1714165924256,-270.0,0.0001979,15]
[323695463,1714165924265,-154.67449997,0.00019795,2]
[323695464,1714165924274,-159.85662846,0.00019813,2]
[323695465,1714165924283,-152.47114042,0.00019822,2]
[323695466,1714165924293,-500.0,0.00019823,2]
[323695467,1714165924305,-152.50970044,0.00019846,2]
[323695468,1714165924314,-201.17254694,0.0001985,2]
[323695469,1714165924323,-557.71554175,0.0001986,2]
[323695470,1714165924333,-154.56744621,0.00019877,2]
[323695471,1714165924343,-500.0,0.00019877,2]
[323695472,1714165924355,-277.37,0.0001988,15]
[323695473,1714165924365,-497464.25496038,0.0001989,2]
[323695474,1714165924377,-270.0,0.0001989,15]
[323695475,1714165924388,-150.7423774,0.00019899,2]
[323695476,1714165924397,-204.0539258,0.000199,2]
[323695477,1714165924407,-204.053925,0.000199,2]
[323695478,1714165924417,-204.053925,0.000199,2]
[323695479,1714165924427,-204.053925,0.000199,2]
[323695480,1714165924438,-204.053925,0.000199,2]
[323695481,1714165924448,-204.053925,0.000199,2]
[323695482,1714165924458,-204.053925,0.000199,2]
[323695483,1714165924467,-204.053925,0.000199,2]
[323695484,1714165924477,-204.053925,0.000199,2]
[323695485,1714165924488,-204.053925,0.000199,2]
[323695486,1714165924498,-204.053925,0.000199,2]
[323695487,1714165924508,-204.053925,0.000199,2]
[323695488,1714165924518,-204.053925,0.000199,2]
[323695489,1714165924527,-204.053925,0.000199,2]
[323695490,1714165924536,-204.053925,0.000199,2]
[323695491,1714165924547,-204.053925,0.000199,2]
[323695492,1714165924558,-204.053925,0.000199,2]
[323695493,1714165924568,-204.053925,0.000199,2]
[323695494,1714165924577,-204.053925,0.000199,2]
[323695495,1714165924589,-204.053925,0.000199,2]
[323695496,1714165924598,-204.053925,0.000199,2]
[323695497,1714165924609,-204.053925,0.000199,2]
[323695498,1714165924619,-204.053925,0.000199,2]
[323695499,1714165924629,-204.053925,0.000199,2]
[323695500,1714165924639,-204.053925,0.000199,2]
[323695501,1714165924650,-204.053925,0.000199,2]
[323695502,1714165924659,-204.053925,0.000199,2]
[323695503,1714165924669,-204.053925,0.000199,2]
[323695504,1714165924679,-204.053925,0.000199,2]
[323695505,1714165924691,-204.053925,0.000199,2]
[323695506,1714165924701,-204.053925,0.000199,2]
[323695507,1714165924711,-204.053925,0.000199,2]
[323695508,1714165924722,-204.053925,0.000199,2]
[323695509,1714165924732,-204.053925,0.000199,2]
[323695510,1714165924742,-204.053925,0.000199,2]
[323695511,1714165924752,-204.053925,0.000199,2]
[323695512,1714165924761,-204.053925,0.000199,2]
[323695513,1714165924770,-204.053925,0.000199,2]
[323695514,1714165924780,-204.053925,0.000199,2]
[323695515,1714165924789,-204.053925,0.000199,2]
[323695516,1714165924799,-204.053925,0.000199,2]
[323695517,1714165924809,-204.053925,0.000199,2]
[323695518,1714165924819,-204.053925,0.000199,2]
[323695519,1714165924830,-204.053925,0.000199,2]
[323695520,1714165924840,-204.053925,0.000199,2]
[323695521,1714165924849,-204.053925,0.000199,2]
[323695522,1714165924861,-204.053925,0.000199,2]
[323695523,1714165924871,-204.053925,0.000199,2]
[323695524,1714165924881,-204.053925,0.000199,2]
[323695525,1714165924891,-204.053925,0.000199,2]
[323695526,1714165924900,-204.053925,0.000199,2]
[323695527,1714165924911,-204.053925,0.000199,2]
[323695528,1714165924921,-204.053925,0.000199,2]
[323695529,1714165924931,-204.053925,0.000199,2]
[323695530,1714165924943,-204.053925,0.000199,2]
[323695531,1714165924953,-204.053925,0.000199,2]
[323695532,1714165924962,-204.053925,0.000199,2]
[323695533,1714165924974,-204.053925,0.000199,2]
[323695534,1714165924983,-204.053925,0.000199,2]
[323695535,1714165924993,-204.053925,0.000199,2]
[323695536,1714165925003,-204.053925,0.000199,2]
[323695537,1714165925012,-204.053925,0.000199,2]
[323695538,1714165925021,-204.053925,0.000199,2]
[323695539,1714165925031,-204.053925,0.000199,2]
[323695540,1714165925041,-204.053925,0.000199,2]
[323695541,1714165925051,-204.053925,0.000199,2]
[323695542,1714165925061,-204.053925,0.000199,2]
[323695543,1714165925070,-204.053925,0.000199,2]
[323695544,1714165925080,-204.053925,0.000199,2]
[323695545,1714165925094,-204.053925,0.000199,2]
[323695546,1714165925104,-204.053925,0.000199,2]
[323695547,1714165925113,-204.053925,0.000199,2]
[323695548,1714165925123,-204.053925,0.000199,2]
[323695549,1714165925133,-204.053925,0.000199,2]
[323695550,1714165925143,-204.053925,0.000199,2]
[323695551,1714165925152,-204.053925,0.000199,2]
[323695552,1714165925161,-204.053925,0.000199,2]
[323695553,1714165925171,-204.053925,0.000199,2]
[323695554,1714165925181,-204.053925,0.000199,2]
[323695555,1714165925190,-204.053925,0.000199,2]
[323695556,1714165925200,-204.053925,0.000199,2]
[323695557,1714165925209,-204.053925,0.000199,2]
[323695558,1714165925223,-204.053925,0.000199,2]
[323695559,1714165925233,-204.053925,0.000199,2]
[323695560,1714165925243,-204.053925,0.000199,2]
[323695561,1714165925253,-204.053925,0.000199,2]
[323695562,1714165925263,-204.053925,0.000199,2]
[323695563,1714165925272,-204.053925,0.000199,2]
[323695564,1714165925282,-204.053925,0.000199,2]
[323695565,1714165925291,-204.053925,0.000199,2]
[323695566,1714165925304,-995.98,0.000199,2]
[323695567,1714165925314,-15408.14,0.000199,2]
[323695568,1714165925323,-15408.14,0.000199,2]
[323695569,1714165925333,-15408.14,0.000199,2]
[323695570,1714165925342,-15408.14,0.000199,2]
[323695571,1714165925354,-15408.14,0.000199,2]
[323695572,1714165925363,-15408.14,0.000199,2]
[323695573,1714165925373,-15408.14,0.000199,2]
[323695574,1714165925383,-15408.14,0.000199,2]
[323695575,1714165925394,-15408.14,0.000199,2]
[323695576,1714165925403,-15408.14,0.000199,2]
[323695577,1714165925413,-15408.14,0.000199,2]
[323695578,1714165925423,-15408.14,0.000199,2]
[323695579,1714165925433,-15408.14,0.000199,2]
[323695580,1714165925442,-15408.14,0.000199,2]
[323695581,1714165925452,-15408.14,0.000199,2]
[323695582,1714165925462,-15408.14,0.000199,2]
[323695583,1714165925473,-15408.14,0.000199,2]
[323695584,1714165925482,-15408.14,0.000199,2]
[323695585,1714165925492,-15408.14,0.000199,2]
[323695586,1714165925502,-15408.14,0.000199,2]
[323695587,1714165925512,-153.67518868,0.00019905,2]
[323695588,1714165925521,-267.32903863,0.00019931,2]
[323695589,1714165925531,-152.47114042,0.00019935,2]
[323695590,1714165925540,-851.0,0.00019936,2]
[323695591,1714165925549,-732.0,0.00019936,2]
[323695592,1714165925560,-150.7423774,0.00019938,2]
[323695593,1714165925569,-152.50970044,0.00019946,2]
[323695594,1714165925579,-1407.43167261,0.00019975,2]
[323695595,1714165925590,-323.60026895,0.00019978,2]
[323695596,1714165925599,-107108.72600458,0.0001999,2]
[323695597,1714165925609,-50000.0,0.0002,2]
[323695598,1714165925618,-541843.15330181,0.0002,2]
[323695599,1714165925628,-300657.32553637,0.0002,2]
[323695600,1714165925638,-6514.18559248,0.0002,2]
[323695601,1714165925648,-46540.16597258,0.0002,2]
[323695602,1714165925658,-14332.06217352,0.0002,2]
[323695603,1714165925667,-207.65034434,0.0002,2]
[323695604,1714165925677,-234.61281488,0.0002,2]
[323695605,1714165925687,-428.79602872,0.0002,2]
[323695606,1714165925697,-155.14678362,0.0002,2]
[323695607,1714165925707,-1980.50169981,0.0002,2]
[323695608,1714165925717,-3391.60850482,0.0002,2]
[323695609,1714165925727,-11912.03831699,0.0002,2]
[323695610,1714165925736,-2414.11346701,0.0002,2]
[323695611,1714165925746,-155.0,0.0002,2]
[323695612,1714165925755,-155.24810116,0.0002,2]
[323695613,1714165925766,-966.0,0.0002,2]
[323695614,1714165925775,-84412.480666,0.0002,2]
[323695615,1714165925785,-807.84,0.0002,2]
[323695616,1714165925795,-290.23238633,0.0002,2]
[323695617,1714165925804,-12058.17812359,0.0002,2]
[323695618,1714165925814,-1190.42731828,0.0002,2]
[323695619,1714165925824,-239.63,0.0002,2]
[323695620,1714165925834,-335.14139636,0.0002,2]
[323695621,1714165925845,-1004.1774486,0.0002,2]
[323695622,1714165925855,-2464.0,0.0002,2]
[323695623,1714165925865,-300.0,0.0002,2]
[323695624,1714165925875,-300.0,0.0002,2]
[323695625,1714165925885,-300.0,0.0002,2]
[323695626,1714165925895,-406.38,0.0002,2]
[323695627,1714165925905,-587.49761584,0.0002,2]
[323695628,1714165925916,-6016.36076935,0.0002,5]
[323695629,1714165925926,-328.49433453,0.0002,4]
[323695630,1714165925937,-199.36401013,0.0002,2]
[323695631,1714165925947,-1162.02048652,0.0002,4]
[323695632,1714165925957,-652.4,0.0002,2]
[323695633,1714165925968,-150.0,0.0002,2]
[323695634,1714165925978,-2999.98,0.0002,2]
[323695635,1714165925988,-3005.28,0.0002,2]
[323695636,1714165925998,-3000.0,0.0002,2]
[323695637,1714165926008,-3000.0,0.0002,2]
[323695638,1714165926018,-3001.4,0.0002,2]
[323695639,1714165926029,-3728.08435963,0.0002,2]
[323695640,1714165926039,-6653.0,0.0002,2]
[323695641,1714165926049,-3950.0,0.0002,2]
[323695642,1714165926059,-2461.01780396,0.0002,2]
[323695643,1714165926069,-7549.89473127,0.0002,2]
[323695644,1714165926080,-2552.70615367,0.0002,2]
[323695645,1714165926091,-200.0,0.0002,2]
[323695646,1714165926100,-176.0,0.0002,2]
[323695647,1714165926111,-188.0,0.0002,2]
[323695648,1714165926121,-180.30736737,0.0002,2]
[323695649,1714165926132,-603.7496631,0.0002,2]
[323695650,1714165926143,-8991.86278432,0.0002,2]
[323695651,1714165926153,-150.0,0.0002,2]
[323695652,1714165926163,-14536.41995761,0.0002,2]
[323695653,1714165926175,-10413.55428188,0.0002,4]
[323695654,1714165926185,-276.87245795,0.0002,2]
[323695655,1714165926196,-326.0,0.0002,2]
[323695656,1714165926207,-763045.6079567,0.0002,2]
[323695657,1714165926217,-1038.78692727,0.0002,3]
[323695658,1714165926229,-1000.0,0.0002,3]
[323695659,1714165926240,-4000.0,0.0002,4]
[323695660,1714165926250,-4000.0,0.0002,3]
[323695661,1714165926260,-260.91337314,0.0002,30]
[323695662,1714165926270,-300.64,0.0002,2]
[323695663,1714165926280,-652.4,0.0002,2]
[323695664,1714165926290,-356.0,0.0002,2]
[323695665,1714165926303,-188.0,0.0002,2]
[323695666,1714165926313,-1369.95527945,0.0002,2]
[323695667,1714165926323,-214.99424978,0.0002,2]
[323695668,1714165926333,-500.0,0.0002,2]
[323695669,1714165926345,-500.0,0.0002,2]
[323695670,1714165926355,-500.0,0.0002,2]
[323695671,1714165926365,-1744.0,0.0002,2]
[323695672,1714165926374,-3564.0,0.0002,2]
[323695673,1714165926385,-628.0,0.0002,2]
[323695674,1714165926395,-390.48171717,0.0002,2]
[323695675,1714165926405,-234.2890303,0.0002,2]
[323695676,1714165926414,-156.19268687,0.0002,2]
[323695677,1714165926424,-966.0,0.0002,2]
[323695678,1714165926434,-3526.34079156,0.0002,2]
[323695679,1714165926444,-5125.98605263,0.0002,2]
[323695680,1714165926455,-712.0,0.0002,2]
[323695681,1714165926464,-350.870203,0.0002,2]
[323695682,1714165926474,-200.0,0.0002,2]
[323695683,1714165926483,-150.0,0.0002,2]
[323695684,1714165926494,-200.0,0.0002,2]
[323695685,1714165926504,-176.0,0.0002,2]
[323695686,1714165926513,-1500.0,0.0002,2]
[323695687,1714165926524,-275.5,0.0002,2]
[323695688,1714165926533,-150.0,0.0002,2]
[323695689,1714165926543,-150.0,0.0002,2]
[323695690,1714165926553,-1000.0,0.0002,2]
[323695691,1714165926563,-11216.00498372,0.0002,2]
[323695692,1714165926573,-13036.38788511,0.0002,2]
[323695693,1714165926583,-5403.51241537,0.0002,2]
[323695694,1714165926594,-262.39132998,0.0002,2]
[323695695,1714165926604,-155.59674192,0.00020003,2]
[323695696,1714165926614,-1463.46823127,0.00020017,2]
[323695697,1714165926624,-152.0,0.00020025,2]
[323695698,1714165926634,-267.32903863,0.00020052,2]
[323695699,1714165926644,-154.67449997,0.00020053,2]
[323695700,1714165926654,-154.67449997,0.00020058,2]
[323695701,1714165926664,-7600.0,0.0002009,2]
[323695702,1714165926673,-154.67449997,0.00020109,2]
[323695703,1714165926682,-673.80146933,0.00020131,2]
[323695704,1714165926693,-851.0,0.00020141,2]
[323695705,1714165926703,-732.0,0.00020141,2]
[323695706,1714165926713,-152.50582994,0.00020142,2]
[323695707,1714165926910,-557.71554175,0.00020143,2]
[323695708,1714165926920,-154.31732651,0.0002015,2]
[323695709,1714165926930,-152.83625942,0.0002017,2]
[323695710,1714165926940,-4102.33,0.000202,2]
[323695711,1714165926950,-4354.01,0.000202,2]
[323695712,1714165926959,-557.71554175,0.00020205,2]
[323695713,1714165926969,-163.9684999,0.00020272,2]
[323695714,1714165926979,-557.71554175,0.00020301,2]
[323695715,1714165926988,-1551.0,0.00020302,2]
[323695716,1714165926998,-153.98573812,0.00020319,2]
[323695717,1714165927008,-851.0,0.00020347,2]
[323695718,1714165927017,-732.0,0.00020347,2]
[323695719,1714165927027,-152.50582994,0.00020372,2]
[323695720,1714165927037,-323.60026895,0.00020391,2]
[323695721,1714165927047,-4425.21,0.000204,2]
[323695722,1714165927058,-181.18381325,0.00020401,2]
[323695723,1714165927068,-154.31732651,0.00020412,2]
[323695724,1714165927078,-152.50970046,0.00020416,2]
[323695725,1714165927088,-557.71554175,0.00020422,2]
[323695726,1714165927097,-1463.46823127,0.00020423,2]
[323695727,1714165927107,-267.32903863,0.00020433,2]
[323695728,1714165927117,-255.74586642,0.00020469,2]
[323695729,1714165927127,-267.32903863,0.0002047,2]
[323695730,1714165927137,-1407.43167261,0.00020486,2]
[323695731,1714165927148,-1463.46823127,0.00020488,2]
[323695732,1714165927159,-150.0,0.000205,2]
[323695733,1714165927168,-557.71554175,0.00020501,2]
[323695734,1714165927178,-152.83625942,0.00020521,2]
[323695735,1714165927187,-19869.66,0.00020548,2]
[323695736,1714165927197,-173.19,0.00020548,2]
[323695737,1714165927206,-851.0,0.00020552,2]
[323695738,1714165927216,-633.1815103,0.00020552,2]
[323695739,1714165927226,-1243.52526398,0.00020552,2]
[323695740,1714165927235,-732.0,0.00020552,2]
[323695741,1714165927245,-1570.88261488,0.00020552,2]
[323695742,1714165927254,-164.68127762,0.00020609,2]
[323695743,1714165927263,-152.83625942,0.00020654,2]
[323695744,1714165927273,-152.47114042,0.00020656,2]
[323695745,1714165927283,-151.74936673,0.00020685,2]
[323695746,1714165927292,-673.80146933,0.00020692,2]
[323695747,1714165927305,-181.18381325,0.00020713,2]
[323695748,1714165927314,-1407.43167261,0.00020715,2]
[323695749,1714165927324,-155.04600889,0.00020716,2]
[323695750,1714165927333,-158.37439134,0.0002072,2]
[323695751,1714165927344,-152.50582994,0.00020742,2]
[323695752,1714165927353,-673.80146933,0.00020744,2]
[323695753,1714165927362,-851.0,0.00020758,2]
[323695754,1714165927372,-732.0,0.00020758,2]
[323695755,1714165927382,-164.45670986,0.00020778,2]
[323695756,1714165927392,-200.0,0.0002078,2]
[323695757,1714165927402,-176.7958114,0.00020813,2]
[323695758,1714165927411,-154.31732651,0.00020816,2]
[323695759,1714165927420,-152.50582994,0.0002082,2]
[323695760,1714165927431,-995.98,0.0002088,2]
[323695761,1714165927442,-151.0,0.00020887,30]
[323695762,1714165927451,-500.0,0.00020888,2]
[323695763,1714165927461,-163.30132173,0.00020915,2]
[323695764,1714165927471,-673.80146933,0.00020917,2]
[323695765,1714165927480,-167.85142384,0.00020922,2]
[323695766,1714165927492,-323.60026895,0.00020951,2]
[323695767,1714165927502,-154.31732651,0.00020958,2]
[323695768,1714165927512,-851.0,0.00020963,2]
[323695769,1714165927522,-732.0,0.00020963,2]
[323695770,1714165927532,-152.83625942,0.00020973,2]
[323695771,1714165927542,-152.83625942,0.00020978,2]
[323695772,1714165927552,-154.31732651,0.00020984,2]
[323695773,1714165927561,-1551.0,0.00020986,2]
[323695774,1714165927570,-50000.0,0.00021,2]
[323695775,1714165927580,-1648.89658925,0.00021,2]